[Event "*** Titled Tuesday 3|2 Blitz"]
[Site "Chess.com"]
[Date "2015.02.24"]
[Round "7"]
[White "wonderfultime"]
[Black "Ar4uha"]
[Result "0-1"]
[WhiteElo "2548"]
[BlackElo "2463"]
[TimeControl "180+2"]
[EndTime "12:32:23 PST"]
[Termination "Ar4uha won by resignation"]

1. d4 {[%clk 0:03:00]} 1... Nf6 {[%clk 0:02:35]} 2. c4 {[%clk 0:02:56.8]} 2...
e6 {[%clk 0:02:28.3]} 3. Nf3 {[%clk 0:02:56.8]} 3... b6 {[%clk 0:02:29.2]} 4. a3
{[%clk 0:02:58]} 4... Ba6 {[%clk 0:02:30.2]} 5. Qc2 {[%clk 0:02:56.2]} 5... Bb7
{[%clk 0:02:04.6]} 6. Nc3 {[%clk 0:02:56]} 6... c5 {[%clk 0:02:04.1]} 7. dxc5
{[%clk 0:02:41]} 7... bxc5 {[%clk 0:01:54.7]} 8. Bf4 {[%clk 0:02:40.2]} 8... Be7
{[%clk 0:01:36.5]} 9. e3 {[%clk 0:02:40.5]} 9... Bxf3 {[%clk 0:01:29.5]} 10.
gxf3 {[%clk 0:02:42.4]} 10... Nh5 {[%clk 0:01:30.3]} 11. Bg3 {[%clk 0:02:43.3]}
11... Nc6 {[%clk 0:01:25.1]} 12. Be2 {[%clk 0:02:43.9]} 12... Qb6 {[%clk
0:01:15.7]} 13. Rd1 {[%clk 0:02:37.9]} 13... Rd8 {[%clk 0:01:06.1]} 14. f4
{[%clk 0:02:30.9]} 14... Nxg3 {[%clk 0:01:06.5]} 15. hxg3 {[%clk 0:02:32.8]}
15... g6 {[%clk 0:01:08]} 16. Kf1 {[%clk 0:02:29.9]} 16... h5 {[%clk 0:00:56.2]}
17. Kg2 {[%clk 0:02:29.8]} 17... d6 {[%clk 0:00:56.4]} 18. Bf3 {[%clk
0:02:30.2]} 18... Na5 {[%clk 0:00:52.4]} 19. Ne4 {[%clk 0:02:20.2]} 19... Kf8
{[%clk 0:00:51.5]} 20. Qc3 {[%clk 0:02:18.3]} 20... Kg8 {[%clk 0:00:40]} 21. b4
{[%clk 0:02:18.8]} 21... cxb4 {[%clk 0:00:37.2]} 22. axb4 {[%clk 0:02:20.7]}
22... Nxc4 {[%clk 0:00:34]} 23. Qxc4 {[%clk 0:02:03.6]} 23... d5 {[%clk
0:00:35.2]} 24. Qc3 {[%clk 0:01:59]} 24... dxe4 {[%clk 0:00:36.3]} 25. Rxd8+
{[%clk 0:02:00.9]} 25... Qxd8 {[%clk 0:00:36.7]} 26. Bxe4 {[%clk 0:02:02.8]}
26... Bf6 {[%clk 0:00:37.1]} 27. Qa3 {[%clk 0:02:02.7]} 27... Qb6 {[%clk
0:00:32.4]} 28. Rc1 {[%clk 0:02:01.3]} 28... Kg7 {[%clk 0:00:32.8]} 29. Rc6
{[%clk 0:02:02.4]} 29... Qb5 {[%clk 0:00:30.4]} 30. Qxa7 {[%clk 0:02:01.7]}
30... Qxb4 {[%clk 0:00:31.3]} 31. Rxe6 {[%clk 0:02:00]} 31... h4 {[%clk
0:00:21.9]} 32. Bd5 {[%clk 0:01:48.3]} 32... h3+ {[%clk 0:00:21.5]} 33. Kh2
{[%clk 0:01:49.4]} 33... Qd2 {[%clk 0:00:20.2]} 34. e4 {[%clk 0:01:48.2]} 34...
Bd4 {[%clk 0:00:21.5]} 35. Rxg6+ {[%clk 0:01:37.7]} 35... Kxg6 {[%clk
0:00:17.3]} 36. Qxf7+ {[%clk 0:01:39.1]} 36... Kh6 {[%clk 0:00:17.4]} 37. Qe6+
{[%clk 0:01:29.9]} 37... Kg7 {[%clk 0:00:18.1]} 38. Qe7+ {[%clk 0:01:31]} 38...
Kh6 {[%clk 0:00:15.9]} 39. Qg5+ {[%clk 0:00:38.9]} 39... Kh7 {[%clk 0:00:16.7]}
40. Bf7 {[%clk 0:00:20.3]} 40... Qxf2+ {[%clk 0:00:13]} 41. Kxh3 {[%clk
0:00:21.8]} 41... Qf1+ {[%clk 0:00:09.7]} 42. Kh4 {[%clk 0:00:23.3]} 42... Qh1+
{[%clk 0:00:10.1]} 43. Kg4 {[%clk 0:00:24.7]} 43... Qh6 {[%clk 0:00:05.9]} 44.
e5 {[%clk 0:00:14.6]} 44... Qxg5+ {[%clk 0:00:06.7]} 45. Kxg5 {[%clk 0:00:16.5]}
45... Kg7 {[%clk 0:00:07.8]} 46. Bd5 {[%clk 0:00:17.1]} 46... Rh2 {[%clk
0:00:08.9]} 47. Kf5 {[%clk 0:00:17]} 47... Rf2 {[%clk 0:00:09.9]} 48. Be4 {[%clk
0:00:14.2]} 48... Bb2 {[%clk 0:00:10.2]} 49. Ke6 {[%clk 0:00:13.9]} 49... Re2
{[%clk 0:00:08.6]} 50. Bf3 {[%clk 0:00:14.6]} 50... Re3 {[%clk 0:00:09.7]} 51.
Bd5 {[%clk 0:00:15.8]} 51... Rxg3 {[%clk 0:00:11]} 52. Kf5 {[%clk 0:00:15.7]}
52... Bc1 {[%clk 0:00:11.4]} 53. Be4 {[%clk 0:00:15.4]} 53... Rg1 {[%clk
0:00:11.6]} 54. Bd3 {[%clk 0:00:16.8]} 54... Rd1 {[%clk 0:00:12]} 55. Ke4 {[%clk
0:00:16]} 55... Re1+ {[%clk 0:00:11.9]} 56. Kf5 {[%clk 0:00:15.6]} 56... Re3
{[%clk 0:00:13]} 57. Be4 {[%clk 0:00:15.8]} 57... Re2 {[%clk 0:00:12.6]} 58. Bf3
{[%clk 0:00:17.3]} 58... Rf2 {[%clk 0:00:12]} 59. Ke4 {[%clk 0:00:18.5]} 59...
Rf1 {[%clk 0:00:12.2]} 60. f5 {[%clk 0:00:19.6]} 60... Re1+ {[%clk 0:00:12.5]}
61. Kd5 {[%clk 0:00:21]} 61... Bf4 {[%clk 0:00:12.7]} 62. f6+ {[%clk 0:00:21.6]}
62... Kg6 {[%clk 0:00:12.7]} 63. Be4+ {[%clk 0:00:22.7]} 63... Kf7 {[%clk
0:00:14.2]} 64. Kd4 {[%clk 0:00:22.8]} 64... Rd1+ {[%clk 0:00:14.7]} 65. Bd3
{[%clk 0:00:24.3]} 65... Ke6 {[%clk 0:00:15.3]} 66. Ke4 {[%clk 0:00:25.4]} 66...
Bxe5 {[%clk 0:00:16.5]} 67. f7 {[%clk 0:00:27.3]} 67... Kxf7 {[%clk 0:00:17.8]}
0-1

[Event "*** Titled Tuesday 3|2 Blitz"]
[Site "Chess.com"]
[Date "2015.02.24"]
[Round "7"]
[White "IMRosen"]
[Black "Zvonokchess"]
[Result "0-1"]
[WhiteElo "2062"]
[BlackElo "2477"]
[TimeControl "180+2"]
[EndTime "12:33:02 PST"]
[Termination "Zvonokchess won by resignation"]

1. c4 {[%clk 0:02:51.5]} 1... c5 {[%clk 0:02:57.6]} 2. Nf3 {[%clk 0:02:47.3]}
2... g6 {[%clk 0:02:41.7]} 3. Nc3 {[%clk 0:02:45.6]} 3... Nf6 {[%clk 0:02:41.1]}
4. d4 {[%clk 0:02:39.9]} 4... cxd4 {[%clk 0:02:41]} 5. Nxd4 {[%clk 0:02:41.8]}
5... d5 {[%clk 0:02:42.3]} 6. Bg5 {[%clk 0:02:34.4]} 6... Bg7 {[%clk 0:02:39.4]}
7. Bxf6 {[%clk 0:02:34.1]} 7... Bxf6 {[%clk 0:02:40.4]} 8. Nxd5 {[%clk 0:02:33]}
8... Bg7 {[%clk 0:02:35.1]} 9. e3 {[%clk 0:02:29.2]} 9... Nc6 {[%clk 0:02:33.7]}
10. Nxc6 {[%clk 0:02:23.5]} 10... bxc6 {[%clk 0:02:34.7]} 11. Nc3 {[%clk
0:02:25.1]} 11... Qa5 {[%clk 0:02:34.4]} 12. Qc2 {[%clk 0:02:15]} 12... Rb8
{[%clk 0:02:35.5]} 13. Rc1 {[%clk 0:02:12]} 13... Bf5 {[%clk 0:02:26.9]} 14. e4
{[%clk 0:02:11.5]} 14... Be6 {[%clk 0:02:01.6]} 15. Be2 {[%clk 0:02:10.9]} 15...
O-O {[%clk 0:01:57.5]} 16. O-O {[%clk 0:02:11.2]} 16... Rfd8 {[%clk 0:01:58.7]}
17. Rfd1 {[%clk 0:02:01.4]} 17... Bd4 {[%clk 0:01:57.4]} 18. Na4 {[%clk
0:01:55]} 18... Rd7 {[%clk 0:01:17.5]} 19. b3 {[%clk 0:01:53.6]} 19... Rbd8
{[%clk 0:01:18.2]} 20. Rd3 {[%clk 0:01:44.5]} 20... Qe5 {[%clk 0:01:00.1]} 21.
Rcd1 {[%clk 0:01:42.6]} 21... Qxe4 {[%clk 0:00:59.4]} 22. Bf3 {[%clk 0:00:56.4]}
22... Qf4 {[%clk 0:00:55.3]} 23. g3 {[%clk 0:00:35.7]} 23... Qc7 {[%clk
0:00:55.7]} 24. Qe2 {[%clk 0:00:30.6]} 24... Bf5 {[%clk 0:00:48.3]} 25. R3d2
{[%clk 0:00:31.8]} 25... h5 {[%clk 0:00:36.4]} 26. Kg2 {[%clk 0:00:30.3]} 26...
Rd6 {[%clk 0:00:26.6]} 27. h4 {[%clk 0:00:30.5]} 27... Qd7 {[%clk 0:00:27.7]}
28. c5 {[%clk 0:00:25]} 28... Bh3+ {[%clk 0:00:12.5]} 29. Kh2 {[%clk 0:00:24.2]}
29... Bxc5 {[%clk 0:00:07.2]} 30. Nxc5 {[%clk 0:00:16.8]} 30... Rxd2 {[%clk
0:00:08.1]} 31. Rxd2 {[%clk 0:00:07.7]} 31... Qxd2 {[%clk 0:00:08.5]} 32. Kxh3
{[%clk 0:00:09.2]} 32... Qxe2 {[%clk 0:00:06.9]} 33. Bxe2 {[%clk 0:00:11.1]}
33... Rd2 {[%clk 0:00:08.3]} 34. Bf3 {[%clk 0:00:07.4]} 34... Rxf2 {[%clk
0:00:06.6]} 35. Bxc6 {[%clk 0:00:08.2]} 35... Rxa2 {[%clk 0:00:07.3]} 36. b4
{[%clk 0:00:08.1]} 36... Rc2 {[%clk 0:00:06.4]} 37. Bd5 {[%clk 0:00:07.8]} 37...
a5 {[%clk 0:00:07]} 38. Nd3 {[%clk 0:00:07.7]} 38... Rc3 {[%clk 0:00:05.3]} 39.
Nf4 {[%clk 0:00:03.5]} 39... axb4 {[%clk 0:00:04.7]} 40. Ne2 {[%clk 0:00:05.2]}
40... Rc2 {[%clk 0:00:05.4]} 41. Nd4 {[%clk 0:00:06.1]} 41... Rd2 {[%clk
0:00:06.8]} 42. Nc6 {[%clk 0:00:04.4]} 42... Rb2 {[%clk 0:00:04.3]} 43. g4
{[%clk 0:00:05.9]} 43... hxg4+ {[%clk 0:00:05.2]} 44. Kxg4 {[%clk 0:00:07.8]}
44... Kf8 {[%clk 0:00:06.9]} 45. Kf3 {[%clk 0:00:08.6]} 45... b3 {[%clk
0:00:08]} 46. Ke3 {[%clk 0:00:08.5]} 46... Rb1 {[%clk 0:00:08.7]} 47. Kd2 {[%clk
0:00:09.6]} 47... b2 {[%clk 0:00:09.6]} 48. Kc2 {[%clk 0:00:05.8]} 48... Rd1
{[%clk 0:00:10.1]} 49. Kxb2 {[%clk 0:00:03.8]} 49... Rxd5 {[%clk 0:00:10.8]} 50.
Kb3 {[%clk 0:00:03.4]} 50... Rh5 {[%clk 0:00:11]} 51. Kb4 {[%clk 0:00:04.1]}
51... Rxh4+ {[%clk 0:00:12.1]} 52. Kc3 {[%clk 0:00:06]} 52... g5 {[%clk
0:00:13.3]} 53. Kd3 {[%clk 0:00:07.4]} 53... g4 {[%clk 0:00:14.6]} 54. Ke3
{[%clk 0:00:08.9]} 54... Rh6 {[%clk 0:00:15.4]} 55. Nd4 {[%clk 0:00:09.3]} 55...
Rg6 {[%clk 0:00:16.2]} 56. Kf2 {[%clk 0:00:09.8]} 56... g3+ {[%clk 0:00:17.5]}
57. Kg2 {[%clk 0:00:11.6]} 57... e6 {[%clk 0:00:19]} 58. Nc6 {[%clk 0:00:12.5]}
58... Rg5 {[%clk 0:00:18.8]} 59. Nb8 {[%clk 0:00:12.5]} 59... Ke7 {[%clk
0:00:19.5]} 60. Nc6+ {[%clk 0:00:13.7]} 60... Kf6 {[%clk 0:00:20.9]} 61. Nd4
{[%clk 0:00:15.4]} 61... Rg8 {[%clk 0:00:22.1]} 62. Ne2 {[%clk 0:00:15.8]} 62...
Ke5 {[%clk 0:00:23.3]} 63. Nc1 {[%clk 0:00:16.6]} 63... f5 {[%clk 0:00:23.8]}
64. Nd3+ {[%clk 0:00:18.1]} 64... Kf6 {[%clk 0:00:24.7]} 65. Nb4 {[%clk
0:00:18.7]} 65... e5 {[%clk 0:00:25.3]} 66. Nd5+ {[%clk 0:00:20.4]} 66... Ke6
{[%clk 0:00:26.5]} 67. Nc7+ {[%clk 0:00:22.1]} 67... Kd6 {[%clk 0:00:26.8]} 68.
Nb5+ {[%clk 0:00:23.7]} 68... Kd5 {[%clk 0:00:28]} 69. Nc3+ {[%clk 0:00:25.5]}
69... Kd4 {[%clk 0:00:29]} 70. Ne2+ {[%clk 0:00:27.2]} 70... Ke3 {[%clk
0:00:30.2]} 71. Nc3 {[%clk 0:00:28.7]} 71... f4 {[%clk 0:00:30]} 72. Nd5+ {[%clk
0:00:30.4]} 72... Ke2 {[%clk 0:00:30.2]} 73. Nc3+ {[%clk 0:00:31]} 73... Kd3
{[%clk 0:00:31.1]} 74. Nd5 {[%clk 0:00:31]} 74... Rg7 {[%clk 0:00:29.3]} 75.
Nb4+ {[%clk 0:00:29.5]} 75... Ke2 {[%clk 0:00:30.1]} 76. Nd5 {[%clk 0:00:27]}
76... f3+ {[%clk 0:00:31.3]} 0-1

[Event "*** Titled Tuesday 3|2 Blitz"]
[Site "Chess.com"]
[Date "2015.02.24"]
[Round "7"]
[White "petrpalachev"]
[Black "lukas_111111"]
[Result "0-1"]
[WhiteElo "2378"]
[BlackElo "2162"]
[TimeControl "180+2"]
[EndTime "12:35:00 PST"]
[Termination "lukas_111111 won by resignation"]

1. d4 {[%clk 0:03:00]} 1... Nf6 {[%clk 0:02:57.8]} 2. c4 {[%clk 0:03:00.7]} 2...
g6 {[%clk 0:02:58.6]} 3. Nc3 {[%clk 0:03:01.4]} 3... d5 {[%clk 0:02:59.3]} 4.
cxd5 {[%clk 0:03:01.9]} 4... Nxd5 {[%clk 0:02:59.7]} 5. e4 {[%clk 0:03:03.6]}
5... Nxc3 {[%clk 0:03:00.8]} 6. bxc3 {[%clk 0:03:05.5]} 6... Bg7 {[%clk
0:03:02.1]} 7. Bc4 {[%clk 0:03:07.2]} 7... O-O {[%clk 0:03:02.4]} 8. Ne2 {[%clk
0:03:08.8]} 8... c5 {[%clk 0:03:03.8]} 9. O-O {[%clk 0:03:10.5]} 9... Nc6 {[%clk
0:03:05]} 10. Be3 {[%clk 0:03:11.8]} 10... b6 {[%clk 0:03:06.2]} 11. Qd2 {[%clk
0:03:12.6]} 11... Bb7 {[%clk 0:03:05.7]} 12. Rfd1 {[%clk 0:03:09]} 12... Rc8
{[%clk 0:03:03.1]} 13. Rac1 {[%clk 0:03:09.6]} 13... e6 {[%clk 0:03:00.7]} 14.
Bg5 {[%clk 0:03:09.1]} 14... Bf6 {[%clk 0:02:58.8]} 15. Bxf6 {[%clk 0:03:08.7]}
15... Qxf6 {[%clk 0:03:00.2]} 16. Qe3 {[%clk 0:03:09.7]} 16... e5 {[%clk
0:02:54.6]} 17. Bd5 {[%clk 0:02:59.4]} 17... cxd4 {[%clk 0:02:30.8]} 18. cxd4
{[%clk 0:03:01.3]} 18... exd4 {[%clk 0:02:31.2]} 19. Nxd4 {[%clk 0:02:53.6]}
19... Nxd4 {[%clk 0:02:31.8]} 20. Bxb7 {[%clk 0:02:52.1]} 20... Rxc1 {[%clk
0:02:32]} 21. Rxc1 {[%clk 0:02:52.5]} 21... Ne6 {[%clk 0:02:31.5]} 22. Bd5
{[%clk 0:02:52]} 22... Nf4 {[%clk 0:02:30.4]} 23. Bb3 {[%clk 0:02:33.4]} 23...
Re8 {[%clk 0:02:25.1]} 24. g3 {[%clk 0:02:27.8]} 24... Ne6 {[%clk 0:02:22.4]}
25. Bd5 {[%clk 0:02:24.2]} 25... Re7 {[%clk 0:02:22.9]} 26. Kg2 {[%clk
0:02:23.1]} 26... Kg7 {[%clk 0:02:22.7]} 27. Rc2 {[%clk 0:02:15.3]} 27... Nd4
{[%clk 0:02:21.2]} 28. Rd2 {[%clk 0:02:12.2]} 28... Ne6 {[%clk 0:02:19.9]} 29.
h4 {[%clk 0:02:12.9]} 29... h5 {[%clk 0:02:18.7]} 30. Rc2 {[%clk 0:02:10.4]}
30... Nc5 {[%clk 0:02:19.4]} 31. Qf3 {[%clk 0:01:59.7]} 31... Qe5 {[%clk
0:02:15.9]} 32. Rc4 {[%clk 0:01:57]} 32... Qd6 {[%clk 0:02:08.6]} 33. Qc3+
{[%clk 0:01:56.6]} 33... Qe5 {[%clk 0:02:08.5]} 34. Qxe5+ {[%clk 0:01:57.4]}
34... Rxe5 {[%clk 0:02:09.3]} 35. f4 {[%clk 0:01:58.4]} 35... Re7 {[%clk
0:02:10.2]} 36. Kf3 {[%clk 0:01:59.5]} 36... f6 {[%clk 0:02:04.5]} 37. Rc3
{[%clk 0:02:00.7]} 37... Rd7 {[%clk 0:02:03]} 38. Rc1 {[%clk 0:01:55.5]} 38...
f5 {[%clk 0:02:02.5]} 39. Rc3 {[%clk 0:01:52.1]} 39... fxe4+ {[%clk 0:01:51.7]}
40. Bxe4 {[%clk 0:01:54]} 40... Rd2 {[%clk 0:01:48.8]} 41. a3 {[%clk 0:01:47.4]}
41... Kf6 {[%clk 0:01:48.4]} 42. Bc6 {[%clk 0:01:41.5]} 42... Rd6 {[%clk
0:01:47.5]} 43. Bb5 {[%clk 0:01:40.9]} 43... Rd2 {[%clk 0:01:47.3]} 44. Bc4
{[%clk 0:01:39.5]} 44... Rd4 {[%clk 0:01:40.2]} 45. Bb5 {[%clk 0:01:39.5]} 45...
Rd1 {[%clk 0:01:33.5]} 46. Re3 {[%clk 0:01:28.3]} 46... Ne6 {[%clk 0:01:22.6]}
47. Bc4 {[%clk 0:01:23.3]} 47... Nd4+ {[%clk 0:01:23.4]} 48. Kg2 {[%clk
0:01:14.9]} 48... Rd2+ {[%clk 0:01:23]} 49. Kh3 {[%clk 0:01:13.6]} 49... Rc2
{[%clk 0:01:19.3]} 50. Bb3 {[%clk 0:01:09.2]} 50... Rb2 {[%clk 0:01:15.4]} 51.
Bd5 {[%clk 0:01:05]} 51... a5 {[%clk 0:01:09.7]} 52. g4 {[%clk 0:01:02]} 52...
hxg4+ {[%clk 0:01:09.2]} 53. Kxg4 {[%clk 0:01:03.9]} 53... Rh2 {[%clk
0:01:01.6]} 54. Rc3 {[%clk 0:00:57.8]} 54... b5 {[%clk 0:00:50.8]} 55. Rc8
{[%clk 0:00:39]} 55... Nf5 {[%clk 0:00:43.1]} 56. Rc6+ {[%clk 0:00:39.9]} 56...
Kg7 {[%clk 0:00:28.7]} 57. Rc7+ {[%clk 0:00:34.4]} 57... Kh6 {[%clk 0:00:22.7]}
58. Bg8 {[%clk 0:00:20.6]} 58... Rxh4+ {[%clk 0:00:22.2]} 59. Kf3 {[%clk
0:00:22.3]} 59... Rh3+ {[%clk 0:00:19]} 60. Kg2 {[%clk 0:00:23.5]} 60... Rg3+
{[%clk 0:00:15.2]} 61. Kf2 {[%clk 0:00:22.2]} 61... Kh5 {[%clk 0:00:15.9]} 62.
Rc5 {[%clk 0:00:19.4]} 62... Rxa3 {[%clk 0:00:13.7]} 63. Rxb5 {[%clk 0:00:16.4]}
63... Kg4 {[%clk 0:00:14.7]} 64. Bf7 {[%clk 0:00:17.3]} 64... Ra2+ {[%clk
0:00:14.3]} 65. Ke1 {[%clk 0:00:15.7]} 65... Kxf4 {[%clk 0:00:13.5]} 66. Bxg6
{[%clk 0:00:16.6]} 66... Nd4 {[%clk 0:00:14.3]} 67. Rd5 {[%clk 0:00:13.9]} 67...
Nf3+ {[%clk 0:00:13.3]} 68. Kd1 {[%clk 0:00:14.6]} 68... Rg2 {[%clk 0:00:12.9]}
69. Be8 {[%clk 0:00:11.3]} 69... Ke4 {[%clk 0:00:11.3]} 70. Bc6 {[%clk 0:00:11]}
70... Rg1+ {[%clk 0:00:07.7]} 71. Kc2 {[%clk 0:00:06]} 71... Nd4+ {[%clk
0:00:08.7]} 72. Kc3 {[%clk 0:00:06.6]} 72... Nxc6 {[%clk 0:00:09.3]} 73. Rd6
{[%clk 0:00:06.8]} 73... Rc1+ {[%clk 0:00:09]} 74. Kb3 {[%clk 0:00:07]} 74...
Rc5 {[%clk 0:00:10]} 75. Rd1 {[%clk 0:00:07.6]} 75... Rb5+ {[%clk 0:00:09.6]}
76. Ka4 {[%clk 0:00:07.6]} 76... Rb4+ {[%clk 0:00:10.8]} 77. Ka3 {[%clk
0:00:09.5]} 77... Nd4 {[%clk 0:00:11.8]} 78. Rc1 {[%clk 0:00:09.7]} 78... Nb5+
{[%clk 0:00:12]} 79. Ka2 {[%clk 0:00:11.2]} 79... Kd5 {[%clk 0:00:13]} 80. Rd1+
{[%clk 0:00:12.4]} 80... Rd4 {[%clk 0:00:13.2]} 81. Rc1 {[%clk 0:00:13.3]} 81...
Rc4 {[%clk 0:00:14.3]} 82. Rd1+ {[%clk 0:00:13.9]} 82... Kc5 {[%clk 0:00:15.7]}
83. Rh1 {[%clk 0:00:15.1]} 83... Kb4 {[%clk 0:00:16]} 84. Rb1+ {[%clk
0:00:14.9]} 84... Ka4 {[%clk 0:00:17]} 85. Rh1 {[%clk 0:00:15.9]} 85... Rc2+
{[%clk 0:00:17.5]} 86. Kb1 {[%clk 0:00:16.7]} 86... Rd2 {[%clk 0:00:18.8]} 87.
Ka1 {[%clk 0:00:17.3]} 87... Kb3 {[%clk 0:00:16.3]} 88. Rb1+ {[%clk 0:00:17.2]}
88... Ka4 {[%clk 0:00:16.5]} 89. Rh1 {[%clk 0:00:15.3]} 89... Rd4 {[%clk
0:00:16.8]} 90. Rc1 {[%clk 0:00:15.9]} 90... Na3 {[%clk 0:00:12.7]} 91. Rc3
{[%clk 0:00:14.5]} 91... Kb4 {[%clk 0:00:13.3]} 92. Rb3+ {[%clk 0:00:14.4]}
92... Ka4 {[%clk 0:00:10.9]} 93. Rb8 {[%clk 0:00:13.5]} 93... Rd1+ {[%clk
0:00:10.9]} 94. Ka2 {[%clk 0:00:14.6]} 94... Rd2+ {[%clk 0:00:12.4]} 95. Ka1
{[%clk 0:00:16]} 95... Nc2+ {[%clk 0:00:13.5]} 96. Kb2 {[%clk 0:00:16.3]} 96...
Nb4+ {[%clk 0:00:14.1]} 97. Ka1 {[%clk 0:00:15.7]} 97... Kb3 {[%clk 0:00:13.7]}
0-1

[Event "*** Titled Tuesday 3|2 Blitz"]
[Site "Chess.com"]
[Date "2015.02.24"]
[Round "8"]
[White "190l"]
[Black "AndreyOstrovskiy"]
[Result "0-1"]
[WhiteElo "1988"]
[BlackElo "2338"]
[TimeControl "180+2"]
[EndTime "12:38:12 PST"]
[Termination "AndreyOstrovskiy won by resignation"]

1. d4 {[%clk 0:03:00]} 1... Nf6 {[%clk 0:02:58.6]} 2. c4 {[%clk 0:03:00.9]} 2...
e6 {[%clk 0:02:59.5]} 3. Nc3 {[%clk 0:03:01.9]} 3... Bb4 {[%clk 0:02:59.9]} 4.
Qc2 {[%clk 0:03:03.4]} 4... O-O {[%clk 0:03:00.5]} 5. a3 {[%clk 0:03:04.9]} 5...
Bxc3+ {[%clk 0:03:02]} 6. Qxc3 {[%clk 0:03:06.8]} 6... d6 {[%clk 0:03:03.6]} 7.
Bg5 {[%clk 0:03:06.5]} 7... Nbd7 {[%clk 0:03:05.1]} 8. f3 {[%clk 0:03:05.2]}
8... Re8 {[%clk 0:03:01.6]} 9. e4 {[%clk 0:03:05.8]} 9... e5 {[%clk 0:02:55.2]}
10. d5 {[%clk 0:03:05.5]} 10... a5 {[%clk 0:02:54]} 11. b4 {[%clk 0:03:04.4]}
11... Nxe4 {[%clk 0:02:33.9]} 12. Bxd8 {[%clk 0:02:58.3]} 12... Nxc3 {[%clk
0:02:34.9]} 13. Bxc7 {[%clk 0:02:57.3]} 13... axb4 {[%clk 0:02:35.8]} 14. Bxd6
{[%clk 0:02:57.6]} 14... b3 {[%clk 0:02:36.8]} 15. Bd3 {[%clk 0:02:34.4]} 15...
b2 {[%clk 0:02:15.5]} 16. Rb1 {[%clk 0:02:34.4]} 16... Nxb1 {[%clk 0:02:09]} 17.
Bxb1 {[%clk 0:02:36.3]} 17... Nb6 {[%clk 0:02:01.8]} 0-1

[Event "*** Titled Tuesday 3|2 Blitz"]
[Site "Chess.com"]
[Date "2015.02.24"]
[Round "8"]
[White "Argente"]
[Black "PauloCesarCosta"]
[Result "1/2-1/2"]
[WhiteElo "2195"]
[BlackElo "2066"]
[TimeControl "180+2"]
[EndTime "12:38:14 PST"]
[Termination "Game drawn by agreement"]

1. d4 {[%clk 0:03:00]} 1... d5 {[%clk 0:02:58]} 2. Nf3 {[%clk 0:03:00.8]} 2...
c6 {[%clk 0:02:59.3]} 3. Bf4 {[%clk 0:03:00.1]} 3... Qb6 {[%clk 0:02:58.8]} 4.
Qc1 {[%clk 0:03:00.7]} 4... Bf5 {[%clk 0:02:58.7]} 5. e3 {[%clk 0:03:00.6]} 5...
Nd7 {[%clk 0:02:59]} 6. c4 {[%clk 0:03:01.3]} 6... dxc4 {[%clk 0:02:57.3]} 7.
Bxc4 {[%clk 0:03:00.3]} 7... e6 {[%clk 0:02:58]} 8. O-O {[%clk 0:02:56.9]} 8...
Ngf6 {[%clk 0:02:57.8]} 9. Nc3 {[%clk 0:02:57.4]} 9... Be7 {[%clk 0:02:49]} 10.
Re1 {[%clk 0:02:57.2]} 10... Ne4 {[%clk 0:02:40.5]} 11. Nxe4 {[%clk 0:02:55.6]}
11... Bxe4 {[%clk 0:02:41.5]} 12. Nd2 {[%clk 0:02:56.6]} 12... Bg6 {[%clk
0:02:33.2]} 13. a3 {[%clk 0:02:53.2]} 13... O-O {[%clk 0:02:32.6]} 14. Qc3
{[%clk 0:02:52.2]} 14... Rfe8 {[%clk 0:02:24.8]} 15. Rac1 {[%clk 0:02:47.8]}
15... Bf6 {[%clk 0:02:24.2]} 16. Qb3 {[%clk 0:02:24.6]} 16... Qxb3 {[%clk
0:02:23.7]} 17. Nxb3 {[%clk 0:02:23.5]} 17... e5 {[%clk 0:02:20.9]} 18. dxe5
{[%clk 0:02:22.2]} 18... Nxe5 {[%clk 0:02:21.7]} 1/2-1/2

[Event "*** Titled Tuesday 3|2 Blitz"]
[Site "Chess.com"]
[Date "2015.02.24"]
[Round "8"]
[White "gumersindo"]
[Black "AUSSIE_PINOY"]
[Result "0-1"]
[WhiteElo "2110"]
[BlackElo "2351"]
[TimeControl "180+2"]
[EndTime "12:38:41 PST"]
[Termination "AUSSIE_PINOY won by checkmate"]

1. d4 {[%clk 0:03:00]} 1... c5 {[%clk 0:02:56.2]} 2. d5 {[%clk 0:03:00.7]} 2...
d6 {[%clk 0:02:56.5]} 3. c4 {[%clk 0:03:01.6]} 3... b5 {[%clk 0:02:56.9]} 4.
cxb5 {[%clk 0:03:01.7]} 4... a6 {[%clk 0:02:58.1]} 5. bxa6 {[%clk 0:03:03]} 5...
Bxa6 {[%clk 0:02:57.8]} 6. Nc3 {[%clk 0:03:04]} 6... Nf6 {[%clk 0:02:58.9]} 7.
g3 {[%clk 0:03:05]} 7... g6 {[%clk 0:03:00]} 8. Bg2 {[%clk 0:03:06.5]} 8... Bg7
{[%clk 0:03:01.3]} 9. Nf3 {[%clk 0:03:08.1]} 9... O-O {[%clk 0:03:01.6]} 10. Rb1
{[%clk 0:03:08]} 10... Nbd7 {[%clk 0:03:02.3]} 11. b3 {[%clk 0:03:08.6]} 11...
Ng4 {[%clk 0:02:51.2]} 12. Bd2 {[%clk 0:03:08.9]} 12... Qa5 {[%clk 0:02:42.2]}
13. Qc2 {[%clk 0:03:00.9]} 13... Rfb8 {[%clk 0:02:42]} 14. a4 {[%clk 0:02:54.7]}
14... c4 {[%clk 0:02:34.8]} 15. Nb5 {[%clk 0:02:47.4]} 15... Qb6 {[%clk
0:02:35.6]} 16. bxc4 {[%clk 0:02:47.4]} 16... Qxf2+ {[%clk 0:02:35.5]} 17. Kd1
{[%clk 0:02:46.6]} 17... Qxg2 {[%clk 0:02:35.5]} 18. Nh4 {[%clk 0:02:14.9]}
18... Qxh1+ {[%clk 0:02:34.2]} 19. Be1 {[%clk 0:02:16.8]} 19... Ne3+ {[%clk
0:02:34]} 20. Kd2 {[%clk 0:02:17.6]} 20... Nxc2 {[%clk 0:02:34.2]} 21. Rb2
{[%clk 0:02:18.8]} 21... Qxe1+ {[%clk 0:02:34]} 22. Kd3 {[%clk 0:02:18.8]} 22...
Nb4+ {[%clk 0:02:33.7]} 23. Rxb4 {[%clk 0:02:17.4]} 23... Qxb4 {[%clk 0:02:34]}
24. e4 {[%clk 0:02:17.5]} 24... Nc5+ {[%clk 0:02:34.7]} 25. Ke2 {[%clk 0:02:18]}
25... Qxc4+ {[%clk 0:02:35.8]} 26. Kf2 {[%clk 0:02:18.5]} 26... Bxb5 {[%clk
0:02:35.9]} 27. axb5 {[%clk 0:02:19]} 27... Ra2+ {[%clk 0:02:36.8]} 28. Kg1
{[%clk 0:02:18.1]} 28... Qc1# {[%clk 0:02:37.2]} 0-1